[Event "January 9 Early 2024"]
[Site "https://www.chess.com"]
[Date "2024.01.11"]
[Round "2"]
[White "Alinasab, Mobina"]
[Black "Molina, Roberto Junio Brito"]
[Result "0-1"]
[Board "284"]
[TimeControl "180+1"]
[WhiteFideId "12528897"]
[BlackFideId "2109450"]
[WhiteElo "2542"]
[BlackElo "2806"]
[WhiteTeam "IRI"]
[BlackTeam "BRA"]
[WhiteClock "0:00:08"]
[BlackClock "0:00:08"]

1. Nf3 {[%clk 0:02:57]}  d5 {[%clk 0:02:59]} 2. g3 {[%clk 0:02:54]}  c6 {[%clk 0:02:57]} 3. Bg2 {[%clk 0:02:54]}  Bg4 {[%clk 0:02:56]} 4. O-O {[%clk 0:02:55]}  Nd7 {[%clk 0:02:55]} 5. d4 {[%clk 0:02:55]}  e6 {[%clk 0:02:55]} 6. b3 {[%clk 0:02:56]}  Bd6 {[%clk 0:02:54]} 7. Bb2 {[%clk 0:02:56]}  Ngf6 {[%clk 0:02:51]} 8. c4 {[%clk 0:02:57]}  Qe7 {[%clk 0:02:50]} 9. Nc3 {[%clk 0:02:57]}  O-O {[%clk 0:02:50]} 10. h3 {[%clk 0:02:55]}  Bh5 {[%clk 0:02:49]} 11. Nd2 {[%clk 0:02:49]}  Ba3 {[%clk 0:02:42]} 12. Qc1 {[%clk 0:02:35]}  Bxb2 {[%clk 0:02:42]} 13. Qxb2 {[%clk 0:02:36]}  a5 {[%clk 0:02:36]} 14. e4 {[%clk 0:02:35]}  dxe4 {[%clk 0:02:35]} 15. Ndxe4 {[%clk 0:02:36]}  Bg6 {[%clk 0:02:26]} 16. a3 {[%clk 0:02:30]}  Nxe4 {[%clk 0:02:24]} 17. Nxe4 {[%clk 0:02:31]}  Bxe4 {[%clk 0:02:23]} 18. Bxe4 {[%clk 0:02:31]}  Nf6 {[%clk 0:02:23]} 19. Bg2 {[%clk 0:02:31]}  Rfd8 {[%clk 0:02:21]} 20. Rad1 {[%clk 0:02:30]}  Rd7 {[%clk 0:02:18]} 21. Rd2 {[%clk 0:02:30]}  Rad8 {[%clk 0:02:17]} 22. Rfd1 {[%clk 0:02:31]}  h6 {[%clk 0:02:13]} 23. Kh2 {[%clk 0:02:27]}  Qd6 {[%clk 0:02:12]} 24. Bf3 {[%clk 0:02:05]}  b5 {[%clk 0:02:03]} 25. Qc3 {[%clk 0:01:54]}  b4 {[%clk 0:01:59]} 26. axb4 {[%clk 0:01:53]}  axb4 {[%clk 0:01:59]} 27. Qe3 {[%clk 0:01:53]}  Qc7 {[%clk 0:01:43]} 28. Bg2 {[%clk 0:01:40]}  c5 {[%clk 0:01:23]} 29. dxc5 {[%clk 0:01:36]}  Rxd2 {[%clk 0:01:24]} 30. Rxd2 {[%clk 0:01:36]}  Rxd2 {[%clk 0:01:24]} 31. Qxd2 {[%clk 0:01:37]}  Qxc5 {[%clk 0:01:25]} 32. Qd8+ {[%clk 0:01:35]}  Kh7 {[%clk 0:01:15]} 33. Qd3+ {[%clk 0:01:35]}  g6 {[%clk 0:01:10]} 34. Kg1 {[%clk 0:01:18]}  Kg7 {[%clk 0:01:09]} 35. Kf1 {[%clk 0:00:57]}  Ne8 {[%clk 0:01:05]} 36. Qd7 {[%clk 0:00:52]}  Nd6 {[%clk 0:00:58]} 37. Qc6 {[%clk 0:00:51]}  Qd4 {[%clk 0:00:57]} 38. Kg1 {[%clk 0:00:50]}  Nf5 {[%clk 0:00:49]} 39. c5 {[%clk 0:00:31]}  Nxg3 {[%clk 0:00:37]} 40. Qd6 {[%clk 0:00:19]}  Qa1+ {[%clk 0:00:26]} 41. Kh2 {[%clk 0:00:19]}  Nf5 {[%clk 0:00:27]} 42. Qf4 {[%clk 0:00:15]}  Qc3 {[%clk 0:00:20]} 43. c6 {[%clk 0:00:13]}  g5 {[%clk 0:00:19]} 44. Qe4 {[%clk 0:00:11]}  Kf6 {[%clk 0:00:17]} 45. Qc4 {[%clk 0:00:09]}  Qxc4 {[%clk 0:00:16]} 46. bxc4 {[%clk 0:00:09]}  Ke7 {[%clk 0:00:16]} 47. c5 {[%clk 0:00:09]}  Kd8 {[%clk 0:00:16]} 48. Be4 {[%clk 0:00:08]}  Kc7 {[%clk 0:00:15]} 49. Kg2 {[%clk 0:00:08]}  Ne7 {[%clk 0:00:15]} 50. Kf3 {[%clk 0:00:09]}  f5 {[%clk 0:00:14]} 51. Bc2 {[%clk 0:00:09]}  Nxc6 {[%clk 0:00:15]} 52. Ke3 {[%clk 0:00:09]}  e5 {[%clk 0:00:11]} 53. Bb3 {[%clk 0:00:08]}  Nd4 {[%clk 0:00:11]} 54. Ba4 {[%clk 0:00:08]}  h5 {[%clk 0:00:10]} 55. Kd3 {[%clk 0:00:08]}  h4 {[%clk 0:00:07]} 56. Kc4 {[%clk 0:00:08]}  b3 {[%clk 0:00:08]} 0-1

[Event "January 9 Early 2024"]
[Site "https://www.chess.com"]
[Date "2024.01.11"]
[Round "2"]
[White "Souleidis, Georgios"]
[Black "Vokhidov, Shamsiddin"]
[Result "0-1"]
[Board "285"]
[TimeControl "180+1"]
[WhiteFideId "4206827"]
[BlackFideId "14204223"]
[WhiteElo "2650"]
[BlackElo "3006"]
[WhiteTeam "GRE"]
[BlackTeam "UZB"]
[WhiteClock "0:00:01"]
[BlackClock "0:00:34"]

1. e4 {[%clk 0:03:00]}  c5 {[%clk 0:02:59]} 2. Be2 {[%clk 0:03:00]}  d5 {[%clk 0:02:59]} 3. d3 {[%clk 0:03:00]}  Nc6 {[%clk 0:02:59]} 4. f4 {[%clk 0:03:00]}  g6 {[%clk 0:02:59]} 5. Nf3 {[%clk 0:03:00]}  Bg7 {[%clk 0:02:59]} 6. O-O {[%clk 0:03:01]}  Nf6 {[%clk 0:02:59]} 7. e5 {[%clk 0:03:01]}  Nh5 {[%clk 0:03:00]} 8. c3 {[%clk 0:03:01]}  Bh6 {[%clk 0:02:57]} 9. g3 {[%clk 0:02:52]}  Ng7 {[%clk 0:02:55]} 10. d4 {[%clk 0:02:43]}  cxd4 {[%clk 0:02:53]} 11. Nxd4 {[%clk 0:02:42]}  O-O {[%clk 0:02:54]} 12. Be3 {[%clk 0:02:41]}  Nf5 {[%clk 0:02:54]} 13. Nxf5 {[%clk 0:02:41]}  Bxf5 {[%clk 0:02:53]} 14. Na3 {[%clk 0:02:21]}  Nxe5 {[%clk 0:02:52]} 15. g4 {[%clk 0:02:06]}  Bxg4 {[%clk 0:02:19]} 16. Bxg4 {[%clk 0:02:06]}  Nc6 {[%clk 0:02:20]} 17. Nc2 {[%clk 0:01:58]}  e6 {[%clk 0:02:19]} 18. Qd2 {[%clk 0:01:55]}  Rc8 {[%clk 0:02:18]} 19. Nd4 {[%clk 0:01:55]}  a6 {[%clk 0:02:17]} 20. Nxc6 {[%clk 0:01:54]}  Rxc6 {[%clk 0:02:18]} 21. Bd4 {[%clk 0:01:49]}  Qh4 {[%clk 0:02:17]} 22. Qg2 {[%clk 0:01:46]}  b5 {[%clk 0:02:13]} 23. Qg3 {[%clk 0:01:44]}  Qe7 {[%clk 0:02:11]} 24. a3 {[%clk 0:01:41]}  a5 {[%clk 0:02:10]} 25. Rae1 {[%clk 0:01:41]}  Qc7 {[%clk 0:02:04]} 26. Be5 {[%clk 0:01:36]}  Qb7 {[%clk 0:02:01]} 27. f5 {[%clk 0:01:27]}  exf5 {[%clk 0:01:59]} 28. Bxf5 {[%clk 0:01:25]}  b4 {[%clk 0:01:59]} 29. axb4 {[%clk 0:01:24]}  axb4 {[%clk 0:02:00]} 30. Bd4 {[%clk 0:01:17]}  bxc3 {[%clk 0:01:59]} 31. bxc3 {[%clk 0:01:18]}  Bg7 {[%clk 0:01:52]} 32. Bh3 {[%clk 0:01:10]}  Bxd4+ {[%clk 0:01:49]} 33. cxd4 {[%clk 0:01:11]}  Rc4 {[%clk 0:01:49]} 34. Rf4 {[%clk 0:01:03]}  Qb6 {[%clk 0:01:47]} 35. Qf2 {[%clk 0:01:03]}  Qa7 {[%clk 0:01:42]} 36. Be6 {[%clk 0:00:47]}  Qb7 {[%clk 0:01:37]} 37. Qf3 {[%clk 0:00:38]}  Rc7 {[%clk 0:01:22]} 38. Bxd5 {[%clk 0:00:36]}  Qb4 {[%clk 0:01:21]} 39. Rf1 {[%clk 0:00:29]}  Qe7 {[%clk 0:01:19]} 40. Bb3 {[%clk 0:00:20]}  Rd7 {[%clk 0:01:16]} 41. Kg2 {[%clk 0:00:13]}  Kg7 {[%clk 0:01:15]} 42. Rf2 {[%clk 0:00:13]}  f5 {[%clk 0:01:13]} 43. Re2 {[%clk 0:00:14]}  Qg5+ {[%clk 0:01:11]} 44. Qg3 {[%clk 0:00:13]}  Qf6 {[%clk 0:01:09]} 45. Qe3 {[%clk 0:00:09]}  Rb8 {[%clk 0:01:03]} 46. Rf3 {[%clk 0:00:02]}  Rxd4 {[%clk 0:01:02]} 47. Qe7+ {[%clk 0:00:02]}  Qxe7 {[%clk 0:01:02]} 48. Rxe7+ {[%clk 0:00:03]}  Kf6 {[%clk 0:01:02]} 49. Rfe3 {[%clk 0:00:02]}  h5 {[%clk 0:00:57]} 50. R7e6+ {[%clk 0:00:02]}  Kg5 {[%clk 0:00:57]} 51. Rg3+ {[%clk 0:00:02]}  Rg4 {[%clk 0:00:57]} 52. Rxg4+ {[%clk 0:00:02]}  hxg4 {[%clk 0:00:58]} 53. Bd1 {[%clk 0:00:02]}  Rb2+ {[%clk 0:00:58]} 54. Kg1 {[%clk 0:00:02]}  Rd2 {[%clk 0:00:58]} 55. Re1 {[%clk 0:00:03]}  Kh4 {[%clk 0:00:54]} 56. Ba4 {[%clk 0:00:02]}  f4 {[%clk 0:00:53]} 57. Bc6 {[%clk 0:00:02]}  f3 {[%clk 0:00:46]} 58. Re8 {[%clk 0:00:02]}  Rg2+ {[%clk 0:00:45]} 59. Kf1 {[%clk 0:00:02]}  Rc2 {[%clk 0:00:40]} 60. Bd7 {[%clk 0:00:01]}  Kg5 {[%clk 0:00:37]} 61. Rg8 {[%clk 0:00:01]}  Rxh2 {[%clk 0:00:36]} 62. Be8 {[%clk 0:00:01]}  g3 {[%clk 0:00:34]} 0-1

[Event "January 9 Early 2024"]
[Site "https://www.chess.com"]
[Date "2024.01.11"]
[Round "2"]
[White "Srihari L R"]
[Black "Niemann, Hans Moke"]
[Result "0-1"]
[Board "286"]
[TimeControl "180+1"]
[WhiteFideId "46617116"]
[BlackFideId "2093596"]
[WhiteElo "2673"]
[BlackElo "3074"]
[WhiteTeam "IND"]
[BlackTeam "USA"]
[WhiteClock "0:00:02"]
[BlackClock "0:00:03"]

1. c4 {[%clk 0:03:00]}  e5 {[%clk 0:02:56]} 2. Nc3 {[%clk 0:03:00]}  Nf6 {[%clk 0:02:56]} 3. Nf3 {[%clk 0:03:01]}  Nc6 {[%clk 0:02:56]} 4. e3 {[%clk 0:03:01]}  Be7 {[%clk 0:02:47]} 5. a3 {[%clk 0:02:59]}  a5 {[%clk 0:02:41]} 6. d4 {[%clk 0:02:50]}  exd4 {[%clk 0:02:40]} 7. exd4 {[%clk 0:02:50]}  d5 {[%clk 0:02:41]} 8. c5 {[%clk 0:02:50]}  O-O {[%clk 0:02:34]} 9. Bb5 {[%clk 0:02:50]}  Bg4 {[%clk 0:02:31]} 10. Be3 {[%clk 0:02:50]}  Ne4 {[%clk 0:02:27]} 11. O-O {[%clk 0:02:48]}  Bf6 {[%clk 0:02:18]} 12. Be2 {[%clk 0:02:41]}  Re8 {[%clk 0:02:12]} 13. Re1 {[%clk 0:02:14]}  Ne7 {[%clk 0:01:50]} 14. h3 {[%clk 0:02:00]}  Bxf3 {[%clk 0:01:44]} 15. Bxf3 {[%clk 0:02:00]}  Nf5 {[%clk 0:01:45]} 16. Bxe4 {[%clk 0:01:31]}  dxe4 {[%clk 0:01:44]} 17. Qg4 {[%clk 0:01:30]}  Nxe3 {[%clk 0:00:51]} 18. fxe3 {[%clk 0:01:28]}  Qc8 {[%clk 0:00:39]} 19. Nxe4 {[%clk 0:01:25]}  Be7 {[%clk 0:00:37]} 20. Qf3 {[%clk 0:01:02]}  Bh4 {[%clk 0:00:25]} 21. Re2 {[%clk 0:00:59]}  Qe6 {[%clk 0:00:21]} 22. Nc3 {[%clk 0:00:58]}  c6 {[%clk 0:00:22]} 23. e4 {[%clk 0:00:50]}  Rad8 {[%clk 0:00:21]} 24. d5 {[%clk 0:00:43]}  Qe5 {[%clk 0:00:21]} 25. Rd1 {[%clk 0:00:41]}  Be7 {[%clk 0:00:19]} 26. b4 {[%clk 0:00:39]}  axb4 {[%clk 0:00:18]} 27. axb4 {[%clk 0:00:40]}  Bf6 {[%clk 0:00:17]} 28. Rd3 {[%clk 0:00:38]}  h5 {[%clk 0:00:16]} 29. g3 {[%clk 0:00:33]}  Ra8 {[%clk 0:00:16]} 30. Kg2 {[%clk 0:00:21]}  Ra3 {[%clk 0:00:16]} 31. Ree3 {[%clk 0:00:18]}  Rb3 {[%clk 0:00:15]} 32. dxc6 {[%clk 0:00:17]}  bxc6 {[%clk 0:00:16]} 33. Nd5 {[%clk 0:00:17]}  Rb2+ {[%clk 0:00:16]} 34. Kf1 {[%clk 0:00:11]}  cxd5 {[%clk 0:00:16]} 35. exd5 {[%clk 0:00:11]}  Rb1+ {[%clk 0:00:17]} 36. Kf2 {[%clk 0:00:11]}  Qb2+ {[%clk 0:00:17]} 37. Qe2 {[%clk 0:00:11]}  Qxe2+ {[%clk 0:00:13]} 38. Kxe2 {[%clk 0:00:12]}  Ra8 {[%clk 0:00:09]} 39. Rb3 {[%clk 0:00:11]}  Ra2+ {[%clk 0:00:08]} 40. Kf3 {[%clk 0:00:11]}  Rf1+ {[%clk 0:00:09]} 41. Ke4 {[%clk 0:00:11]}  Rd2 {[%clk 0:00:09]} 42. Rbd3 {[%clk 0:00:08]}  Rb2 {[%clk 0:00:09]} 43. Rb3 {[%clk 0:00:08]}  Rc2 {[%clk 0:00:05]} 44. d6 {[%clk 0:00:06]}  Kf8 {[%clk 0:00:05]} 45. Kd5 {[%clk 0:00:07]}  g6 {[%clk 0:00:05]} 46. b5 {[%clk 0:00:06]}  Rfc1 {[%clk 0:00:04]} 47. d7 {[%clk 0:00:04]}  Rxc5+ {[%clk 0:00:04]} 48. Ke4 {[%clk 0:00:05]}  Re5+ {[%clk 0:00:04]} 49. Kf3 {[%clk 0:00:05]}  Rxe3+ {[%clk 0:00:04]} 50. Kxe3 {[%clk 0:00:06]}  Rd1 {[%clk 0:00:04]} 51. b6 {[%clk 0:00:05]}  Be5 {[%clk 0:00:03]} 52. b7 {[%clk 0:00:03]}  Bxg3 {[%clk 0:00:03]} 53. Ke2 {[%clk 0:00:02]}  Rxd7 {[%clk 0:00:03]} 0-1

[Event "January 9 Early 2024"]
[Site "https://www.chess.com"]
[Date "2024.01.11"]
[Round "2"]
[White "Hercegovac, Neven"]
[Black "Kruckenhauser, Arthur"]
[Result "0-1"]
[Board "291"]
[TimeControl "180+1"]
[WhiteFideId "2839135"]
[BlackFideId "1642812"]
[WhiteElo "2345"]
[BlackElo "2553"]
[WhiteTeam "ITA"]
[BlackTeam "AUT"]
[WhiteClock "0:00:14"]
[BlackClock "0:00:20"]

1. d4 {[%clk 0:03:00]}  Nf6 {[%clk 0:02:59]} 2. Bf4 {[%clk 0:03:01]}  d5 {[%clk 0:02:56]} 3. e3 {[%clk 0:03:01]}  Bf5 {[%clk 0:02:52]} 4. Bd3 {[%clk 0:02:56]}  Bxd3 {[%clk 0:02:46]} 5. cxd3 {[%clk 0:02:53]}  e6 {[%clk 0:02:40]} 6. Nc3 {[%clk 0:02:50]}  a6 {[%clk 0:02:38]} 7. Qb3 {[%clk 0:02:41]}  b6 {[%clk 0:02:36]} 8. Nf3 {[%clk 0:02:33]}  Bd6 {[%clk 0:02:36]} 9. Bxd6 {[%clk 0:02:09]}  Qxd6 {[%clk 0:02:33]} 10. O-O {[%clk 0:02:07]}  O-O {[%clk 0:02:29]} 11. e4 {[%clk 0:01:52]}  Qd8 {[%clk 0:02:20]} 12. Rac1 {[%clk 0:01:44]}  h6 {[%clk 0:02:04]} 13. Rfd1 {[%clk 0:01:44]}  Re8 {[%clk 0:01:45]} 14. a4 {[%clk 0:01:44]}  Kh8 {[%clk 0:01:39]} 15. a5 {[%clk 0:01:43]}  Nc6 {[%clk 0:01:37]} 16. axb6 {[%clk 0:01:37]}  cxb6 {[%clk 0:01:36]} 17. Na4 {[%clk 0:01:20]}  Na5 {[%clk 0:01:36]} 18. Qxb6 {[%clk 0:01:19]}  Qxb6 {[%clk 0:01:34]} 19. Nxb6 {[%clk 0:01:20]}  Rab8 {[%clk 0:01:33]} 20. Na4 {[%clk 0:01:15]}  dxe4 {[%clk 0:01:24]} 21. Ne5 {[%clk 0:01:15]}  Kg8 {[%clk 0:01:12]} 22. Rc5 {[%clk 0:00:54]}  Rb5 {[%clk 0:01:09]} 23. Rc7 {[%clk 0:00:42]}  exd3 {[%clk 0:00:58]} 24. Nxf7 {[%clk 0:00:36]}  Nd5 {[%clk 0:00:43]} 25. Ra7 {[%clk 0:00:34]}  Nc6 {[%clk 0:00:43]} 26. Rxa6 {[%clk 0:00:33]}  Ndb4 {[%clk 0:00:43]} 27. Rxc6 {[%clk 0:00:26]}  Nxc6 {[%clk 0:00:43]} 28. Nd6 {[%clk 0:00:27]}  Rb4 {[%clk 0:00:38]} 29. Nxe8 {[%clk 0:00:27]}  Rxa4 {[%clk 0:00:38]} 30. f3 {[%clk 0:00:26]}  Rxd4 {[%clk 0:00:37]} 31. Kf1 {[%clk 0:00:22]}  Rd7 {[%clk 0:00:37]} 32. Rc1 {[%clk 0:00:16]}  d2 {[%clk 0:00:37]} 33. Rd1 {[%clk 0:00:16]}  Kf7 {[%clk 0:00:37]} 34. Nc7 {[%clk 0:00:16]}  Rxc7 {[%clk 0:00:37]} 35. Rxd2 {[%clk 0:00:16]}  Ne5 {[%clk 0:00:37]} 36. Re2 {[%clk 0:00:17]}  Kf6 {[%clk 0:00:37]} 37. f4 {[%clk 0:00:16]}  Nd3 {[%clk 0:00:34]} 38. g3 {[%clk 0:00:16]}  Rc1+ {[%clk 0:00:30]} 39. Kg2 {[%clk 0:00:15]}  Rb1 {[%clk 0:00:31]} 40. Rd2 {[%clk 0:00:14]}  Rxb2 {[%clk 0:00:31]} 41. Rxb2 {[%clk 0:00:14]}  Nxb2 {[%clk 0:00:32]} 42. Kf3 {[%clk 0:00:15]}  Nc4 {[%clk 0:00:31]} 43. Ke4 {[%clk 0:00:15]}  Nd6+ {[%clk 0:00:30]} 44. Kf3 {[%clk 0:00:15]}  h5 {[%clk 0:00:29]} 45. h3 {[%clk 0:00:15]}  Nb5 {[%clk 0:00:22]} 46. Ke4 {[%clk 0:00:15]}  Nc3+ {[%clk 0:00:22]} 47. Kf3 {[%clk 0:00:15]}  Kg6 {[%clk 0:00:19]} 48. Ke3 {[%clk 0:00:14]}  Nd5+ {[%clk 0:00:18]} 49. Kf3 {[%clk 0:00:14]}  Ne7 {[%clk 0:00:17]} 50. Ke4 {[%clk 0:00:14]}  Nf5 {[%clk 0:00:17]} 51. Kf3 {[%clk 0:00:14]}  Kf6 {[%clk 0:00:17]} 52. g4 {[%clk 0:00:14]}  hxg4+ {[%clk 0:00:17]} 53. hxg4 {[%clk 0:00:15]}  Nd4+ {[%clk 0:00:17]} 54. Ke4 {[%clk 0:00:16]}  Nc2 {[%clk 0:00:17]} 55. Kd3 {[%clk 0:00:14]}  Nb4+ {[%clk 0:00:17]} 56. Ke4 {[%clk 0:00:14]}  Nd5 {[%clk 0:00:17]} 57. f5 {[%clk 0:00:13]}  Nc3+ {[%clk 0:00:15]} 58. Kd3 {[%clk 0:00:12]}  exf5 {[%clk 0:00:16]} 59. gxf5 {[%clk 0:00:12]}  Kxf5 {[%clk 0:00:17]} 60. Kxc3 {[%clk 0:00:13]}  Kf4 {[%clk 0:00:17]} 61. Kd2 {[%clk 0:00:13]}  Kf3 {[%clk 0:00:18]} 62. Ke1 {[%clk 0:00:13]}  Kg2 {[%clk 0:00:17]} 63. Ke2 {[%clk 0:00:13]}  g5 {[%clk 0:00:18]} 64. Ke1 {[%clk 0:00:13]}  g4 {[%clk 0:00:19]} 65. Ke2 {[%clk 0:00:13]}  g3 {[%clk 0:00:19]} 66. Ke1 {[%clk 0:00:14]}  Kh2 {[%clk 0:00:20]} 0-1

[Event "January 9 Early 2024"]
[Site "https://www.chess.com"]
[Date "2024.01.11"]
[Round "2"]
[White "Duda, Jan-Krzysztof"]
[Black "Araujo Sanchez, Josue"]
[Result "1-0"]
[Board "293"]
[TimeControl "180+1"]
[WhiteFideId "1170546"]
[BlackFideId "6416896"]
[WhiteElo "3042"]
[BlackElo "2668"]
[WhiteTeam "POL"]
[BlackTeam "DOM"]
[WhiteClock "0:00:06"]
[BlackClock "0:00:01"]

1. b4 {[%clk 0:03:00]}  c6 {[%clk 0:03:00]} 2. Bb2 {[%clk 0:03:00]}  Qb6 {[%clk 0:02:56]} 3. a3 {[%clk 0:03:01]}  a5 {[%clk 0:02:56]} 4. c4 {[%clk 0:03:01]}  axb4 {[%clk 0:02:56]} 5. c5 {[%clk 0:03:01]}  Qc7 {[%clk 0:02:57]} 6. axb4 {[%clk 0:03:02]}  Rxa1 {[%clk 0:02:58]} 7. Bxa1 {[%clk 0:03:02]}  d5 {[%clk 0:02:53]} 8. cxd6 {[%clk 0:02:54]}  Qxd6 {[%clk 0:02:50]} 9. Qa4 {[%clk 0:02:44]}  Nd7 {[%clk 0:02:44]} 10. e3 {[%clk 0:02:13]}  Ngf6 {[%clk 0:02:33]} 11. Nf3 {[%clk 0:02:07]}  e6 {[%clk 0:02:27]} 12. b5 {[%clk 0:02:04]}  cxb5 {[%clk 0:02:00]} 13. Bxb5 {[%clk 0:02:05]}  Be7 {[%clk 0:02:00]} 14. O-O {[%clk 0:01:34]}  O-O {[%clk 0:01:58]} 15. d4 {[%clk 0:01:26]}  b6 {[%clk 0:01:57]} 16. Bb2 {[%clk 0:01:24]}  Qb8 {[%clk 0:01:40]} 17. Ba3 {[%clk 0:01:19]}  Bxa3 {[%clk 0:01:34]} 18. Nxa3 {[%clk 0:01:20]}  Rd8 {[%clk 0:01:34]} 19. Rb1 {[%clk 0:00:46]}  Bb7 {[%clk 0:01:26]} 20. Be2 {[%clk 0:00:47]}  Be4 {[%clk 0:01:19]} 21. Ra1 {[%clk 0:00:42]}  Nd5 {[%clk 0:01:16]} 22. Nb5 {[%clk 0:00:40]}  Nc7 {[%clk 0:01:04]} 23. Qa7 {[%clk 0:00:22]}  Nxb5 {[%clk 0:01:02]} 24. Qxb8 {[%clk 0:00:20]}  Rxb8 {[%clk 0:00:56]} 25. Bxb5 {[%clk 0:00:20]}  Nf6 {[%clk 0:00:54]} 26. Ne5 {[%clk 0:00:20]}  Ra8 {[%clk 0:00:46]} 27. Rc1 {[%clk 0:00:20]}  g5 {[%clk 0:00:39]} 28. f3 {[%clk 0:00:20]}  Bg6 {[%clk 0:00:37]} 29. e4 {[%clk 0:00:19]}  g4 {[%clk 0:00:36]} 30. Rc2 {[%clk 0:00:11]}  gxf3 {[%clk 0:00:35]} 31. gxf3 {[%clk 0:00:12]}  Ra1+ {[%clk 0:00:35]} 32. Kf2 {[%clk 0:00:12]}  Rd1 {[%clk 0:00:35]} 33. Ke3 {[%clk 0:00:12]}  Rb1 {[%clk 0:00:31]} 34. Bd3 {[%clk 0:00:10]}  Rb3 {[%clk 0:00:30]} 35. Kd2 {[%clk 0:00:06]}  Nh5 {[%clk 0:00:29]} 36. Rc8+ {[%clk 0:00:03]}  Kg7 {[%clk 0:00:29]} 37. Rc7 {[%clk 0:00:04]}  Nf4 {[%clk 0:00:27]} 38. Bc2 {[%clk 0:00:04]}  Ra3 {[%clk 0:00:21]} 39. Rb7 {[%clk 0:00:04]}  Kf8 {[%clk 0:00:12]} 40. Rxb6 {[%clk 0:00:04]}  f6 {[%clk 0:00:13]} 41. Rb8+ {[%clk 0:00:04]}  Ke7 {[%clk 0:00:13]} 42. Rb7+ {[%clk 0:00:04]}  Ke8 {[%clk 0:00:11]} 43. Rb8+ {[%clk 0:00:03]}  Ke7 {[%clk 0:00:09]} 44. Rb7+ {[%clk 0:00:03]}  Ke8 {[%clk 0:00:09]} 45. Nd3 {[%clk 0:00:04]}  Nxd3 {[%clk 0:00:08]} 46. Bxd3 {[%clk 0:00:05]}  Ra2+ {[%clk 0:00:08]} 47. Bc2 {[%clk 0:00:05]}  f5 {[%clk 0:00:06]} 48. Kc3 {[%clk 0:00:03]}  fxe4 {[%clk 0:00:06]} 49. Rb8+ {[%clk 0:00:04]}  Ke7 {[%clk 0:00:05]} 50. fxe4 {[%clk 0:00:05]}  Ra3+ {[%clk 0:00:05]} 51. Rb3 {[%clk 0:00:04]}  Ra4 {[%clk 0:00:04]} 52. Kd3 {[%clk 0:00:04]}  Ra2 {[%clk 0:00:04]} 53. Rc3 {[%clk 0:00:05]}  Ra1 {[%clk 0:00:03]} 54. Ke3 {[%clk 0:00:05]}  Re1+ {[%clk 0:00:03]} 55. Kf4 {[%clk 0:00:04]}  Rh1 {[%clk 0:00:02]} 56. Ke5 {[%clk 0:00:05]}  Rxh2 {[%clk 0:00:03]} 57. Rc7+ {[%clk 0:00:05]}  Kd8 {[%clk 0:00:03]} 58. Rc6 {[%clk 0:00:05]}  Kd7 {[%clk 0:00:04]} 59. Rd6+ {[%clk 0:00:05]}  Kc7 {[%clk 0:00:03]} 60. Bd3 {[%clk 0:00:06]}  Rh5+ {[%clk 0:00:02]} 61. Kxe6 {[%clk 0:00:06]}  Bf7+ {[%clk 0:00:01]} 62. Ke7 {[%clk 0:00:06]} 1-0

[Event "January 9 Early 2024"]
[Site "https://www.chess.com"]
[Date "2024.01.11"]
[Round "2"]
[White "Soraas, Torben"]
[Black "Krishnan, Ritvik"]
[Result "0-1"]
[Board "296"]
[TimeControl "180+1"]
[WhiteFideId "1503529"]
[BlackFideId "45055297"]
[WhiteElo "2233"]
[BlackElo "2494"]
[WhiteTeam "NOR"]
[BlackTeam "IND"]
[WhiteClock "0:00:01"]
[BlackClock "0:00:16"]

1. e4 {[%clk 0:03:00]}  e5 {[%clk 0:02:57]} 2. Nf3 {[%clk 0:02:59]}  Nc6 {[%clk 0:02:58]} 3. Bc4 {[%clk 0:02:59]}  d6 {[%clk 0:02:58]} 4. d4 {[%clk 0:02:59]}  Nf6 {[%clk 0:02:58]} 5. Nc3 {[%clk 0:02:56]}  Be7 {[%clk 0:02:52]} 6. O-O {[%clk 0:02:55]}  O-O {[%clk 0:02:50]} 7. h3 {[%clk 0:02:53]}  h6 {[%clk 0:02:40]} 8. Re1 {[%clk 0:02:52]}  Re8 {[%clk 0:02:39]} 9. a3 {[%clk 0:02:40]}  Bf8 {[%clk 0:02:38]} 10. Qd3 {[%clk 0:02:38]}  exd4 {[%clk 0:02:34]} 11. Nxd4 {[%clk 0:02:35]}  Ne5 {[%clk 0:02:30]} 12. Qf1 {[%clk 0:02:36]}  Nxc4 {[%clk 0:02:27]} 13. Qxc4 {[%clk 0:02:36]}  d5 {[%clk 0:02:22]} 14. Qd3 {[%clk 0:02:25]}  dxe4 {[%clk 0:02:16]} 15. Nxe4 {[%clk 0:02:25]}  Nxe4 {[%clk 0:01:01]} 16. Rxe4 {[%clk 0:02:26]}  c5 {[%clk 0:01:01]} 17. Rxe8 {[%clk 0:02:20]}  Qxe8 {[%clk 0:01:01]} 18. Nf3 {[%clk 0:02:20]}  Be6 {[%clk 0:00:57]} 19. Be3 {[%clk 0:02:00]}  Rd8 {[%clk 0:00:57]} 20. Qc3 {[%clk 0:02:01]}  b6 {[%clk 0:00:54]} 21. Re1 {[%clk 0:01:48]}  Qc6 {[%clk 0:00:50]} 22. Ne5 {[%clk 0:01:39]}  Qd5 {[%clk 0:00:46]} 23. Nd3 {[%clk 0:01:37]}  Qc4 {[%clk 0:00:27]} 24. Qxc4 {[%clk 0:01:36]}  Bxc4 {[%clk 0:00:28]} 25. Nf4 {[%clk 0:01:36]}  g6 {[%clk 0:00:26]} 26. b3 {[%clk 0:01:36]}  Ba6 {[%clk 0:00:26]} 27. a4 {[%clk 0:01:28]}  Bg7 {[%clk 0:00:26]} 28. h4 {[%clk 0:01:18]}  Bc3 {[%clk 0:00:25]} 29. Rc1 {[%clk 0:01:14]}  Kg7 {[%clk 0:00:24]} 30. g3 {[%clk 0:01:06]}  g5 {[%clk 0:00:19]} 31. hxg5 {[%clk 0:01:04]}  hxg5 {[%clk 0:00:20]} 32. Nh5+ {[%clk 0:00:58]}  Kg6 {[%clk 0:00:20]} 33. g4 {[%clk 0:00:58]}  Be2 {[%clk 0:00:19]} 34. Ng3 {[%clk 0:00:49]}  Bxg4 {[%clk 0:00:18]} 35. Ne4 {[%clk 0:00:49]}  Bb2 {[%clk 0:00:13]} 36. Rb1 {[%clk 0:00:49]}  Bd4 {[%clk 0:00:14]} 37. Bxd4 {[%clk 0:00:36]}  Rxd4 {[%clk 0:00:15]} 38. Re1 {[%clk 0:00:23]}  Bf5 {[%clk 0:00:14]} 39. f3 {[%clk 0:00:21]}  Bxe4 {[%clk 0:00:14]} 40. fxe4 {[%clk 0:00:22]}  Rd2 {[%clk 0:00:14]} 41. e5 {[%clk 0:00:15]}  Rxc2 {[%clk 0:00:14]} 42. e6 {[%clk 0:00:16]}  fxe6 {[%clk 0:00:15]} 43. Rxe6+ {[%clk 0:00:16]}  Kf5 {[%clk 0:00:16]} 44. Re7 {[%clk 0:00:16]}  Rb2 {[%clk 0:00:16]} 45. Rxa7 {[%clk 0:00:15]}  Rxb3 {[%clk 0:00:16]} 46. a5 {[%clk 0:00:15]}  bxa5 {[%clk 0:00:16]} 47. Rxa5 {[%clk 0:00:16]}  Rc3 {[%clk 0:00:16]} 48. Kf2 {[%clk 0:00:16]}  Kf4 {[%clk 0:00:16]} 49. Ke2 {[%clk 0:00:16]}  g4 {[%clk 0:00:16]} 50. Kd2 {[%clk 0:00:17]}  Rc4 {[%clk 0:00:16]} 51. Kd3 {[%clk 0:00:17]}  Rd4+ {[%clk 0:00:17]} 52. Kc3 {[%clk 0:00:17]}  Rd5 {[%clk 0:00:17]} 53. Kc4 {[%clk 0:00:16]}  Rf5 {[%clk 0:00:18]} 54. Ra4 {[%clk 0:00:17]}  g3 {[%clk 0:00:18]} 55. Kd3+ {[%clk 0:00:17]}  Kf3 {[%clk 0:00:17]} 56. Ra1 {[%clk 0:00:17]}  g2 {[%clk 0:00:17]} 57. Kc4 {[%clk 0:00:07]}  Kg3 {[%clk 0:00:17]} 58. Rg1 {[%clk 0:00:01]}  Rf1 {[%clk 0:00:16]} 0-1